bitfinex-derivatives/quotes_SOLF0:USTF0_20250720
["timestamp","ask_amount","ask_price","bid_price","bid_amount"]
[1752975983114,0.03629323,178.88,178.84,3.21]
[1752975983820,5.5878,178.87,178.84,3.21]
[1752975984121,0.03629323,178.88,178.84,3.21]
[1752975985019,5.5877,178.87,178.84,3.21]
[1752975986522,5.588,178.86,178.84,3.21]
[1752975987015,5.5878,178.87,178.84,3.21]
[1752975987624,5.62389323,178.88,178.83,3.21]
[1752975987818,0.03629323,178.88,178.83,3.21]
[1752975988018,0.03629323,178.88,178.86,3.21]
[1752975988513,5.62379323,178.88,178.86,3.21]
[1752975988716,0.03629323,178.88,178.86,3.21]
[1752975989923,5.5876,178.87,178.86,3.21]
[1752975990518,5.62369323,178.88,178.86,3.21]
[1752975992014,0.03629323,178.88,178.87,3.21]
[1752975992829,7.48994208,178.88,178.77,6.11358698]
[1752975993024,6.22115282,178.86,178.75,1.85364885]
[1752975993219,5.5885,178.85,178.78,3.21]
[1752975993526,6.22115282,178.91,178.83,3.21]
[1752975993723,1.85364885,178.9,178.83,3.21]
[1752975994223,8.07480167,178.9,178.83,3.21]
[1752975994726,5.5885,178.85,178.83,3.21]
[1752975995421,5.5886,178.84,178.83,3.21]
[1752976001631,7.47796924,178.85,178.83,3.21]
[1752976001835,7.47796924,178.85,178.84,3.21]
[1752976011329,5.62432039,178.85,178.84,3.21]
[1752976011540,1.88956924,178.85,178.84,3.21]
[1752976012144,7.47786924,178.85,178.84,3.21]
[1752976014245,7.47786924,178.85,178.76,6.51511409]
[1752976014246,1.88956924,178.85,178.77,3.21]
[1752976014438,6.22115282,178.82,178.72,3.21]
[1752976014641,6.22115282,178.84,178.71,4.66146524]
[1752976014944,6.22115282,178.84,178.73,3.21]
[1752976015150,1.85364885,178.8,178.73,3.21]
[1752976015453,5.5901,178.79,178.76,3.21]
[1752976016546,5.5907,178.78,178.76,3.21]
[1752976016744,1.85364885,178.78,178.74,3.21]
[1752976017054,1.85364885,178.78,178.72,118.8]
[1752976017350,5.5914,178.76,178.73,4.38792848]
[1752976017547,5.5914,178.76,178.72,118.8]
[1752976017548,5.5914,178.76,178.74,4.38792848]
[1752976017751,5.5908,178.77,178.75,3.21]
[1752976017945,5.5908,178.77,178.72,118.8]
[1752976018146,5.5908,178.77,178.73,4.3862638]
[1752976018346,5.5908,178.77,178.74,3.21]
[1752976020052,0.03567987,178.79,178.68,7.87146524]
[1752976020253,284.6288,178.76,178.69,4.38488295]
[1752976020454,3.06,178.76,178.7,4.38488295]
[1752976020646,4.91364885,178.76,178.72,3.21]
[1752976020852,4.91364885,178.76,178.7,5.5927]
[1752976021044,4.91364885,178.76,178.74,3.21]
[1752976021246,1.85364885,178.83,178.68,118.76]
[1752976021247,5.5911,178.77,178.69,5.06364885]
[1752976021451,5.5911,178.77,178.73,3.21]
[1752976021750,0.03524726,178.75,178.73,3.21]
[1752976022057,0.03524726,178.75,178.74,3.21]
[1752976024553,3.06,178.81,178.74,3.21]
[1752976024760,11.1843877,178.92,178.76,3.21]
[1752976024962,3.06,178.85,178.78,3.21]
[1752976025146,8.649,178.83,178.78,3.21]
[1752976025350,3.06,178.83,178.78,3.21]
[1752976025546,3.06,178.83,178.54,364.24449916]
[1752976025547,3.06,178.79,178.7,4.66146524]
[1752976025755,3.06,178.82,178.68,3.21]
[1752976025949,4.91364885,178.82,178.7,3.21]
[1752976026154,5.5913,178.76,178.71,5.5926]
[1752976026352,1.85364885,178.8,178.73,0.03542602]
[1752976026657,3.06,178.77,178.75,3.21]
[1752976027656,8.6509,178.77,178.75,3.21]
[1752976028553,3.06,178.77,178.75,3.21]
[1752976028953,8.6508,178.77,178.75,3.21]
[1752976032162,3.06,178.77,178.75,3.21]
[1752976032361,3.06,178.76,178.75,3.21]
[1752976032753,5.591,178.77,178.75,3.21]
[1752976032959,8.651,178.77,178.75,3.21]
[1752976033960,3.06,178.86,178.74,5.06364885]
[1752976034162,3.06,178.82,178.75,3.21]
[1752976034762,3.06,178.81,178.75,3.21]
[1752976035758,5.5899,178.8,178.77,3.21]
[1752976036361,5.5899,178.8,178.77,5.5907]
[1752976036663,5.5899,178.8,178.79,3.21]
[1752976036865,8.6496,178.81,178.79,3.21]
[1752976037467,3.06,178.85,178.77,3.21]
[1752976038065,1.85364885,178.86,178.79,5.5901]
[1752976038372,3.06,178.83,178.81,3.21]
[1752976039066,8.649,178.83,178.81,3.21]
[1752976039261,3.06,178.83,178.81,3.21]
[1752976039866,8.6489,178.83,178.81,3.21]
[1752976040166,8.6489,178.83,178.82,3.21]
[1752976047869,3.06,178.83,178.82,3.21]
[1752976050071,8.6489,178.83,178.82,3.21]
[1752976050273,3.06,178.83,178.82,3.21]
[1752976052277,8.6888,178.84,178.83,3.22]
[1752976053271,3.1,178.84,178.83,3.22]
[1752976053968,5.5881,178.86,178.83,3.22]
[1752976054576,8.6877,178.87,178.83,3.22]
[1752976054970,5.5874,178.88,178.84,5.5883]
[1752976055170,8.6874,178.88,178.85,3.22]
[1752976055474,3.1,178.88,178.85,3.22]
[1752976055673,3.1,178.88,178.86,3.22]
[1752976055971,1.85364885,178.9,178.86,3.22]
[1752976056173,3.1,178.88,178.87,3.22]
[1752976057170,3.1,178.87,178.85,3.22]
[1752976057474,3.1,178.88,178.85,3.22]
[1752976057869,3.1,178.85,178.78,3.22]
[1752976058072,3.1,178.87,178.79,7.60454858]
[1752976058374,3.1,178.87,178.81,3.22]
[1752976058570,3.1,178.86,178.83,3.22]
[1752976058776,3.1,178.86,178.84,3.22]
[1752976058978,3.1,178.86,178.85,3.22]
[1752976059878,8.688,178.86,178.85,3.22]
[1752976060677,5.588,178.86,178.85,3.22]
[1752976061479,8.688,178.86,178.85,3.22]
[1752976064982,8.6887,178.84,178.83,3.22]
[1752976066188,5.5887,178.84,178.83,3.22]
[1752976067790,7.44214885,178.85,178.83,3.22]
[1752976067991,4.95364885,178.85,178.84,3.22]
[1752976068989,10.54184885,178.85,178.84,3.22]
[1752976069388,10.54184885,178.85,178.81,5.5894]
[1752976069389,5.5887,178.84,178.81,5.5894]
[1752976069588,8.6887,178.84,178.83,3.22]
[1752976071191,5.5887,178.84,178.83,3.22]
[1752976072990,6.77763324,178.84,178.83,3.22]
[1752976078497,3.11,178.82,178.77,3.13]
[1752976078702,1.18893324,178.81,178.79,3.13]
[1752976079097,1.18893324,178.81,178.79,8.72]
[1752976079292,1.18893324,178.81,178.8,3.13]
[1752976079700,1.18893324,178.81,178.8,8.7198]
[1752976079995,1.18893324,178.81,178.8,3.13]
[1752976080199,5.589,178.83,178.8,3.13]
[1752976080400,1.18893324,178.81,178.8,3.13]
[1752976080799,3.11,178.8,178.78,3.13]
[1752976081001,4.29893324,178.79,178.78,3.13]
[1752976081204,5.5908,178.77,178.76,3.13]
[1752976081405,9.88973324,178.77,178.76,3.13]
[1752976081902,1.18893324,178.77,178.72,375.94]
[1752976082103,1.18893324,178.73,178.69,3.13]
[1752976082404,0.97358997,178.86,178.66,3.13]
[1752976082405,3.11,178.72,178.66,3.13]
[1752976082599,3.11,178.72,178.65,15.18893324]
[1752976082600,3.11,178.72,178.69,3.1654502]
[1752976082806,5.5932,178.7,178.69,0.0354502]
[1752976083103,8.7032,178.7,178.69,0.0354502]
[1752976083307,10.56443324,178.7,178.69,0.0354502]
[1752976084204,8.7032,178.7,178.69,0.0354502]
[1752976084402,10.56443324,178.7,178.69,0.0354502]
[1752976084597,9.32246648,178.7,178.57,4.66277574]
[1752976084798,9.33073885,178.8,178.63,3.13]
[1752976085103,1.86123324,178.65,178.59,3.13]
[1752976085295,1.86123324,178.64,178.59,3.13]
[1752976085499,1.86123324,178.67,178.59,3.13]
[1752976085694,1.86123324,178.67,178.63,5.595]
[1752976085900,1.86123324,178.65,178.64,3.13]
[1752976086406,9.33073885,178.78,178.64,3.13]
[1752976086599,0.03648943,178.66,178.64,3.13]
[1752976086906,5.5936,178.68,178.64,3.13]
[1752976087301,5.5939,178.67,178.62,3.13]
[1752976087499,0.03600424,178.68,178.62,3.13]
[1752976087902,0.03600424,178.68,178.63,5.5949]
[1752976088100,0.03600424,178.68,178.64,3.13]
[1752976088306,0.03600424,178.68,178.65,3.13]
[1752976088508,1.86123324,178.75,178.68,3.13]
[1752976089302,1.86123324,178.77,178.69,3.13]
[1752976089499,1.86123324,178.75,178.69,3.13]
[1752976090005,1.86123324,178.75,178.7,3.13]
[1752976090006,5.5923,178.73,178.7,3.13]
[1752976090202,299.0,178.72,178.55,3.13]
[1752976090411,1.86123324,178.7,178.57,3.13]
[1752976090607,1.86123324,178.7,178.61,3.13]
[1752976090909,1.86123324,178.72,178.63,3.13]
[1752976091708,1.86123324,178.68,178.63,3.13]
[1752976092006,1.86123324,178.68,178.66,0.03548077]
[1752976092207,5.594,178.67,178.66,0.03548077]
[1752976092508,1.86123324,178.68,178.63,3.13]
[1752976092713,1.86123324,178.64,178.63,3.13]
[1752976093910,1.86123324,178.74,178.6,3.13]
[1752976094106,1.86123324,178.67,178.6,3.13]
[1752976094808,1.86123324,178.67,178.61,117.94]
[1752976095006,1.86123324,178.67,178.62,3.13]
[1752976095208,1.86123324,178.67,178.63,3.13]
[1752976095611,1.86123324,178.74,178.55,3.13]
[1752976095810,299.0,178.73,178.51,117.94]
[1752976096113,1.86123324,178.66,178.57,3.13]
[1752976096609,5.5947,178.65,178.59,3.13]
[1752976096810,1.86123324,178.66,178.59,3.13]
[1752976097015,5.5951,178.64,178.59,3.13]
[1752976097313,1.86123324,178.66,178.59,3.13]
[1752976098612,1.86123324,178.66,178.59,121.05]
[1752976098814,1.86123324,178.66,178.6,3.13]
[1752976099015,5.5951,178.64,178.6,3.13]
[1752976099212,5.63044507,178.64,178.6,3.13]
[1752976099913,0.03534507,178.64,178.6,3.13]
[1752976100511,5.63024507,178.64,178.6,3.13]
[1752976105218,0.03534507,178.64,178.6,3.13]
[1752976105416,1.86123324,178.69,178.62,3.13]
[1752976105715,7.45473324,178.69,178.63,5.5948]
[1752976106020,7.45473324,178.69,178.64,3.13]
[1752976106222,5.5936,178.68,178.66,3.13]
[1752976107015,5.5936,178.68,178.67,120.97]
[1752976107621,5.5936,178.68,178.67,3.13]
[1752976107815,5.5936,178.68,178.67,120.95]
[1752976109821,7.45463324,178.69,178.68,3.13]
[1752976110325,1.86123324,178.72,178.68,3.13]
[1752976110713,1.86123324,178.7,178.69,3.13]
[1752976111018,7.45413324,178.7,178.69,3.13]
[1752976111822,1.86123324,178.7,178.69,3.13]
[1752976112820,7.45413324,178.7,178.69,3.13]
[1752976113016,1.86123324,178.72,178.69,3.13]
[1752976114215,5.5927,178.71,178.69,3.16581927]
[1752976114820,1.86123324,178.72,178.69,0.03581927]
[1752976115021,1.86123324,178.72,178.69,3.16581927]
[1752976115519,5.5926,178.71,178.7,3.13]
[1752976116623,1.86123324,178.72,178.7,3.13]
[1752976117327,7.45373324,178.72,178.7,3.13]
[1752976117526,7.45373324,178.72,178.69,0.03581927]
[1752976117719,7.45373324,178.72,178.71,3.13]
[1752976118420,5.5925,178.72,178.71,3.13]
[1752976119227,5.5921,178.73,178.71,3.13]
[1752976119720,5.5921,178.73,178.72,3.13]
[1752976126535,1.86123324,178.74,178.72,3.13]
[1752976126731,1.86123324,178.74,178.7,5.5929]
[1752976126933,1.86123324,178.74,178.73,3.13]
[1752976127530,1.86123324,178.74,178.71,3.13]
[1752976127734,1.86123324,178.74,177.62,91.46699498]
[1752976127735,1.86123324,178.72,178.61,6.18927463]
[1752976128029,1.86123324,178.7,178.62,121.85083352]
[1752976128336,9.33073885,178.8,178.64,3.13]
[1752976128532,5.5928,178.71,178.66,5.5939]
[1752976128837,1.86123324,178.72,178.67,3.13]
[1752976129031,5.593,178.7,178.67,3.13]
[1752976130534,0.03598508,178.7,178.67,3.13]
[1752976130733,1.86123324,178.74,178.67,3.13]
[1752976131237,1.86123324,178.74,178.7,2.99]
[1752976131635,5.5925,178.72,178.7,2.99]
[1752976132638,5.5921,178.73,178.7,2.99]
[1752976133337,5.6,178.73,178.54,6.18927463]
[1752976133537,9.33073885,178.77,178.59,2.99]
[1752976133737,5.593,178.7,178.65,5.5943]
[1752976133934,5.593,178.7,178.65,2.99]
[1752976134136,1.86123324,178.73,178.65,2.99]
[1752976134541,1.86123324,178.7,178.66,117.42]
[1752976134737,1.86123324,178.7,178.58,1.86123324]
[1752976134940,5.5933,178.69,178.68,2.99]
[1752976137435,5.5936,178.68,178.67,3.02550538]
[1752976138438,7.45483324,178.68,178.67,3.02550538]
[1752976138935,5.6,178.68,178.49,6.18927463]
[1752976139133,11.19197209,178.74,178.52,2.99]
[1752976139337,1.86123324,178.65,178.56,2.99]
[1752976139536,5.5955,178.62,178.58,2.99]
[1752976139739,1.86123324,178.65,178.58,2.99]
[1752976140038,5.5958,178.61,178.6,2.99]
[1752976140239,11.1841,178.73,178.6,2.99]
[1752976140440,1.86123324,178.66,178.6,2.99]
[1752976141144,1.86123324,178.62,178.6,2.99]
[1752976141340,1.86123324,178.62,178.61,2.99]
[1752976141946,7.45663324,178.62,178.61,2.99]
[1752976142848,1.86123324,178.62,178.58,117.4]
[1752976143040,1.86123324,178.62,178.59,2.99]
[1752976143240,1.86123324,178.62,178.6,2.99]
[1752976143440,5.5958,178.61,178.6,2.99]
[1752976144141,1.86123324,178.62,178.57,117.42]
[1752976144336,1.86123324,178.59,178.52,2.99]
[1752976144543,1.86123324,178.53,178.47,2.99]
[1752976144741,9.33073885,178.73,178.49,2.99]
[1752976145040,1.86123324,178.6,178.51,2.99]
[1752976145248,1.86123324,178.58,178.53,2.99]
[1752976145448,0.03529688,178.57,178.55,2.99]
[1752976145644,0.03529688,178.57,178.56,7.38284046]
[1752976145837,1.86123324,178.64,178.57,2.99]
[1752976146038,1.86123324,178.64,178.58,2.99]
[1752976146846,5.5958,178.62,178.58,2.99]
[1752976147246,1.86123324,178.72,178.61,1.86123324]
[1752976148041,1.86123324,178.72,178.63,1.86123324]
[1752976148241,11.1846,178.73,178.65,1.86123324]
[1752976148445,1.86123324,178.76,178.67,1.86123324]
[1752976148847,1.86123324,178.74,178.65,2.99]
[1752976149046,1.86123324,178.74,178.64,1.86123324]
[1752976149247,1.86123324,178.76,178.66,1.86123324]
[1752976149443,1.86123324,178.76,178.68,0.0352514]
[1752976149849,1.86123324,178.74,178.68,0.0352514]
[1752976150046,5.5933,178.69,178.68,0.0352514]
[1752976150349,1.86123324,178.72,178.57,2.99]
[1752976150650,1.86123324,178.72,178.62,2.99]
[1752976151243,5.5951,178.64,178.63,2.99]
[1752976164475,0.03560223,178.65,178.63,2.99]
[1752976165072,5.595,178.64,178.6,123.116]
[1752976165776,5.595,178.64,178.61,3.14]
[1752976166075,0.03560223,178.65,178.61,3.14]
[1752976166572,5.595,178.64,178.61,3.14]
[1752976166776,0.03560223,178.65,178.61,3.14]
[1752976166967,7.45663324,178.62,178.61,3.14]
[1752976167578,1.86123324,178.62,178.61,3.14]
[1752976168170,5.5952,178.63,178.61,3.14]
[1752976168676,0.03560223,178.65,178.61,3.14]
[1752976169374,5.595,178.64,178.61,5.5956]
[1752976169577,5.595,178.64,178.62,3.14]
[1752976171570,5.63020223,178.65,178.62,5.5954]
[1752976171771,0.03560223,178.65,178.63,3.14]
[1752976172675,0.03560223,178.65,178.64,5.5948]
[1752976172978,0.03560223,178.65,178.64,8.7348]
[1752976176184,0.03560223,178.65,178.64,3.14]
[1752976177081,0.03560223,178.65,178.64,8.7348]
[1752976177282,1.86123324,178.69,178.64,3.14]
[1752976177788,5.5938,178.68,178.66,3.14]
[1752976177988,1.86123324,178.69,178.66,3.14]
[1752976178581,5.5938,178.68,178.66,3.14]
[1752976178984,1.86123324,178.69,178.66,0.03537715]
[1752976179287,1.86123324,178.67,178.66,0.03537715]
[1752976179490,1.86123324,178.67,178.66,3.17537715]
[1752976179683,7.45513324,178.67,178.66,3.17537715]
[1752976182387,7.45513324,178.67,178.66,0.03537715]
[1752976182587,3.09,178.66,178.49,4.69103092]
[1752976182887,3.09,178.62,178.53,6.55226416]
[1752976183085,1.86123324,178.61,178.54,4.40453772]
[1752976183280,3.09,178.62,178.55,121.82453772]
[1752976183488,1.86123324,178.61,178.57,5.5969]
[1752976183679,1.86123324,178.61,178.55,117.42]
[1752976183886,4.95123324,178.61,178.56,4.40400961]
[1752976184186,5.5962,178.6,178.51,6.55226416]
[1752976184390,5.5962,178.6,178.52,121.82356754]
[1752976184593,5.5962,178.6,178.57,3.14]
[1752976185182,5.5962,178.6,178.57,8.737]
[1752976185388,5.63205927,178.6,178.57,5.597]
[1752976185587,5.63205927,178.6,178.59,3.14]
[1752976186491,0.03585927,178.6,178.59,3.14]
[1752976188090,3.09,178.59,178.51,4.7055276]
[1752976188293,3.09,178.55,178.47,3.14]
[1752976188493,1.86123324,178.53,178.48,4.40452604]
[1752976188796,4.95123324,178.53,178.5,3.14]
[1752976189186,1.86123324,178.53,178.43,117.42]
[1752976189492,1.86123324,178.53,178.48,3.14]
[1752976189796,5.63480861,178.5,178.49,3.14]
[1752976189994,3.09,178.48,178.45,3.14]
[1752976190193,8.69,178.48,178.46,3.14]
[1752976190993,5.6001,178.47,178.46,3.14]
[1752976191492,8.6899,178.48,178.46,3.14]
[1752976191686,3.09,178.48,178.46,3.14]
[1752976192092,3.09,178.48,178.47,3.22]
[1752976192894,8.6898,178.48,178.45,5.6008]
[1752976193198,4.95123324,178.48,178.45,120.66]
[1752976193394,3.1,178.47,178.45,120.66]
[1752976193694,3.1,178.47,178.45,3.22]
[1752976193890,1.86123324,178.46,178.43,3.22]
[1752976194093,0.03538995,178.49,178.4,117.44]
[1752976194295,5.6005,178.46,178.41,3.22]
[1752976194496,1.86123324,178.47,178.4,117.44]
[1752976194799,1.86123324,178.56,178.42,3.22]
[1752976194800,3.1,178.44,178.42,3.22]
[1752976195094,1.86123324,178.45,178.44,3.22]
[1752976195497,4.96123324,178.45,178.44,3.22]
[1752976195695,4.96123324,178.45,178.42,3.22]
[1752976195899,4.96123324,178.45,178.43,3.22]
[1752976196298,4.96123324,178.45,178.42,3.22]
[1752976196299,1.86123324,178.45,178.42,3.22]
[1752976196602,7.46223324,178.45,178.43,3.22]
[1752976197097,10.56223324,178.45,178.43,3.22]
[1752976197294,10.56223324,178.45,178.4,5.6021]
[1752976197295,7.46223324,178.45,178.4,5.6021]
[1752976197499,3.1,178.44,178.41,120.7]
[1752976197698,3.1,178.44,178.42,3.22]
[1752976197898,3.1,178.44,178.43,3.22]
[1752976198200,8.7011,178.44,178.43,3.22]
[1752976198492,1.86123324,178.45,178.43,3.22]
[1752976198696,0.03564806,178.45,178.44,3.22]
[1752976198998,3.13564806,178.45,178.42,3.22]
[1752976199200,3.13564806,178.45,178.43,3.22]
[1752976199497,3.1,178.44,178.42,120.7]
[1752976200293,0.03564806,178.45,178.43,3.22]
[1752976200500,4.9968813,178.45,178.43,3.22]
[1752976201402,3.1,178.43,178.41,3.22]
[1752976201605,3.1,178.43,178.42,3.22]
[1752976201801,8.7014,178.43,178.42,3.22]
[1752976202199,3.1,178.43,178.4,117.48]
[1752976202401,3.1,178.42,178.4,120.7]
[1752976202601,3.1,178.42,178.41,3.22]
[1752976203896,3.13564806,178.45,178.41,3.22]
[1752976204498,8.73664806,178.45,178.41,5.6017]
[1752976204699,8.73664806,178.45,178.43,3.22]
[1752976205606,5.6011,178.44,178.43,3.22]
[1752976205906,0.03564806,178.45,178.44,3.22]
[1752976206901,3.13564806,178.45,178.38,3.22]
[1752976207105,3.13564806,178.45,178.4,8.8222]
[1752976207306,3.13564806,178.45,178.41,3.22]
[1752976207506,5.6013,178.44,178.41,3.22]
[1752976207907,5.6013,178.44,178.41,5.602]
[1752976208103,5.6013,178.44,178.43,3.22]
[1752976208510,8.73644806,178.45,178.43,3.22]
[1752976208700,8.73644806,178.45,178.44,3.22]
[1752976209410,3.1,178.5,178.44,3.22]
[1752976209710,4.96123324,178.5,178.44,3.22]
[1752976210011,4.96123324,178.5,178.44,5.6008]
[1752976210312,3.1,178.46,178.44,3.22]
[1752976210501,3.1,178.46,178.43,120.66]
[1752976210706,4.96123324,178.46,178.44,3.22]
[1752976210907,4.96123324,178.46,178.43,117.44]
[1752976210908,1.86123324,178.46,178.45,3.22]
[1752976211308,5.6006,178.46,178.45,3.22]
[1752976211708,8.7006,178.46,178.45,3.22]
[1752976212307,5.6011,178.44,178.43,120.69557731]
[1752976214517,8.7011,178.44,178.43,3.25557731]
[1752976214816,3.1,178.49,178.44,3.22]
[1752976215018,1.86123324,178.48,178.44,3.22]
[1752976215315,5.6006,178.46,178.44,3.22]
[1752976215516,5.6006,178.46,178.45,3.22]
[1752976215918,8.7006,178.46,178.45,3.22]
[1752976216123,5.6009,178.45,178.43,120.64]
[1752976216321,5.6009,178.45,178.44,3.22]
[1752976216509,5.6009,178.45,178.44,3.25662863]
[1752976217115,3.1,178.54,178.44,3.25662863]
[1752976217319,1.86123324,178.49,178.44,3.25662863]
[1752976217521,3.1,178.48,178.44,3.25662863]
[1752976217725,5.6002,178.47,178.43,123.0212]
[1752976217920,3.1,178.51,178.45,3.22]
[1752976218122,5.6,178.48,178.45,3.22]
[1752976219325,5.6,178.48,178.46,117.38]
[1752976219522,5.5996,178.49,178.46,117.38]
[1752976219723,5.5996,178.49,178.48,3.22]
[1752976221024,8.6296,178.49,178.48,3.22]
[1752976223522,10.49083324,178.49,178.48,3.22]
[1752976223925,3.03,178.51,178.49,3.07]
[1752976224127,1.86123324,178.5,178.47,3.07]
[1752976224326,7.46063324,178.5,178.47,3.07]
[1752976224524,10.49063324,178.5,178.47,3.07]
[1752976224824,4.89123324,178.48,178.46,120.39]
[1752976225028,3.03,178.47,178.46,120.39]
[1752976225725,133.8581665,178.55,178.46,120.39]
[1752976225929,4.89123324,178.49,178.47,3.07]
[1752976226323,10.49103324,178.49,178.47,3.07]
[1752976226527,1.86123324,178.51,178.46,3.07]
[1752976226922,5.5987,178.52,178.48,5.5996]
[1752976227122,3.03,178.54,178.49,3.07]
[1752976227332,3.03,178.54,178.5,117.28]
[1752976227533,3.03,178.54,178.51,3.07]
[1752976228126,3.03,178.54,178.5,117.28]
[1752976228331,3.03,178.54,178.52,3.07]
[1752976228831,5.5983,178.53,178.52,3.07]
[1752976229933,5.598,178.54,178.5,122.8792]
[1752976230128,7.45923324,178.54,178.53,3.07]
[1752976231535,5.5983,178.53,178.51,3.07]
[1752976231731,8.6283,178.53,178.5,117.3161958]
[1752976231931,8.6283,178.53,178.52,3.07]
[1752976236940,4.89123324,178.54,178.51,3.07]
[1752976237335,5.5983,178.53,178.51,3.07]
[1752976237532,4.89123324,178.54,178.51,3.07]
[1752976238240,10.48943324,178.54,178.51,3.07]
[1752976239843,5.5983,178.53,178.51,3.07]
[1752976241645,7.45923324,178.54,178.51,3.07]
[1752976242738,1.86123324,178.54,178.51,8.6689]
[1752976242939,145.52426621,178.62,178.51,3.07]
[1752976242940,4.89123324,178.56,178.51,3.07]
[1752976243343,7.45883324,178.56,178.53,3.07]
[1752976243543,7.45883324,178.56,178.55,3.07]
[1752976244141,3.03,178.61,178.55,3.07]
[1752976244440,1.86123324,178.59,178.55,3.07]
[1752976244840,3.03,178.58,178.55,3.07]
[1752976245745,8.6267,178.58,178.55,3.07]
[1752976246145,8.6267,178.58,178.55,3.10574529]
[1752976246544,10.48793324,178.58,178.55,3.10574529]
[1752976247643,1.86123324,178.58,178.55,0.03574529]
[1752976247947,4.89123324,178.56,178.55,0.03574529]
[1752976248347,4.89123324,178.56,178.55,3.10574529]
[1752976248841,5.5973,178.56,178.55,3.10574529]
[1752976249048,1.86123324,178.58,178.55,3.10574529]
[1752976249445,5.5972,178.57,178.55,3.10574529]
[1752976249743,1.86123324,178.59,178.55,3.10574529]
[1752976249943,1.86123324,178.6,178.55,3.10574529]
[1752976250146,147.38549945,178.62,178.58,3.07]
[1752976250347,145.52426621,178.62,178.6,3.03]
[1752976250544,145.52426621,178.62,178.59,116.88]
[1752976250749,154.26966621,178.62,178.61,3.03]
[1752976251051,148.67426621,178.62,178.61,3.03]
[1752976251348,154.26966621,178.62,178.61,3.03]
[1752976254049,151.11966621,178.62,178.61,3.03]
[1752976254846,154.26966621,178.62,178.61,3.03]
[1752976255042,8.7458,178.61,178.6,0.03589711]
[1752976255354,10.60703324,178.61,178.6,0.03589711]
[1752976256653,10.60703324,178.61,178.6,3.06589711]
[1752976256953,10.60703324,178.61,178.6,0.03589711]
[1752976260353,3.15,178.6,178.53,3.03]
[1752976260554,5.01123324,178.55,178.48,3.03]
[1752976260757,1.86123324,178.54,178.49,3.03]
[1752976260952,3.15,178.53,178.43,3.03]
[1752976261156,3.15,178.53,178.42,376.4]
[1752976261157,1.86123324,178.52,178.45,3.03]
[1752976261357,1.86123324,178.52,178.46,116.64]
[1752976261555,5.5991,178.51,178.47,8.6298]
[1752976261859,1.86123324,178.5,178.45,116.64]
[1752976262055,5.01123324,178.5,178.46,3.03]
[1752976262561,5.01123324,178.5,178.46,8.6304]
[1752976262759,5.01123324,178.5,178.47,3.03]
[1752976263760,5.01123324,178.5,178.48,3.03]
[1752976263957,3.15,178.5,178.49,3.03]
[1752976264160,1.86123324,178.5,178.48,3.03]
[1752976264559,1.86123324,178.5,178.47,5.6001]
[1752976264760,5.01123324,178.5,178.49,3.03]
[1752976265659,1.86123324,178.5,178.46,3.03]
[1752976265858,1.86123324,178.56,178.46,3.03]
[1752976265859,3.15,178.47,178.46,3.03]
[1752976266255,1.86123324,178.48,178.46,3.03]
[1752976266563,5.01123324,178.48,178.47,3.03]
[1752976266966,1.86123324,178.48,178.47,3.03]